fUSD/lending_fUSD_20240211
["ID","MTS","AMOUNT","RATE_DAILY","PERIOD"]
[313744574,1707655846507,-799.17,0.00035616,2]
[313744576,1707655846516,-513.91,0.00035616,2]
[313744578,1707655846525,-500.0,0.00035616,2]
[313744580,1707655846534,-5353.75,0.00035616,2]
[313744582,1707655846543,-763.46,0.00035616,2]
[313744584,1707655846552,-478.26968539,0.00035616,2]
[313744586,1707655846561,-500.0,0.00035616,2]
[313744588,1707655846571,-522.25782567,0.00035616,2]
[313744590,1707655846580,-500.0,0.00035616,2]
[313744591,1707655846590,-500.0,0.00035616,2]
[313744592,1707655846599,-508.99813542,0.00035616,2]
[313744593,1707655846608,-500.0,0.00035616,2]
[313744594,1707655846617,-1239.22,0.00035616,2]
[313744595,1707655846626,-500.0,0.00035616,2]
[313744596,1707655846636,-613.26,0.00035616,2]
[313744597,1707655846645,-500.0,0.00035616,2]
[313744598,1707655846654,-500.0,0.00035616,2]
[313744599,1707655846664,-500.0,0.00035616,2]
[313744600,1707655846674,-550.95,0.00035616,2]
[313744601,1707655846683,-150.0,0.00035616,2]
[313744602,1707655846693,-513.04415574,0.00035616,2]
[313744604,1707655846703,-500.0,0.00035616,2]
[313744606,1707655846712,-510.44458408,0.00035616,2]
[313744608,1707655846722,-494.3422416,0.00035616,2]
[313744610,1707655846732,-506.74623862,0.00035616,2]
[313744612,1707655846741,-513.47403154,0.00035616,2]
[313744614,1707655846750,-500.0,0.00035616,2]
[313744616,1707655846760,-756.61,0.00035616,2]
[313744618,1707655846769,-500.0,0.00035616,2]
[313744620,1707655846778,-500.0,0.00035616,2]
[313744621,1707655846789,-500.0,0.00035616,2]
[313744622,1707655846800,-500.0,0.00035616,2]
[313744623,1707655846809,-500.0,0.00035616,2]
[313744624,1707655846819,-500.0,0.00035616,2]
[313744625,1707655846828,-734.46,0.00035616,2]
[313744626,1707655846838,-646.84,0.00035616,2]
[313744627,1707655846847,-500.0,0.00035616,2]
[313744628,1707655846857,-500.0,0.00035616,2]
[313744629,1707655846866,-500.0,0.00035616,2]
[313744630,1707655846875,-500.0,0.00035616,2]
[313744631,1707655846885,-796.38,0.00035616,2]
[313744632,1707655846895,-500.0,0.00035616,2]
[313744633,1707655846904,-500.0,0.00035616,2]
[313744634,1707655846913,-1843.01,0.00035616,2]
[313744635,1707655846923,-1266.48,0.00035616,2]
[313744636,1707655846932,-500.0,0.00035616,2]
[313744637,1707655846942,-500.0,0.00035616,2]
[313744638,1707655846951,-818.94,0.00035616,2]
[313744639,1707655846961,-500.0,0.00035616,2]
[313744640,1707655846970,-500.0,0.00035616,2]
[313744641,1707655846979,-500.0,0.00035616,2]
[313744642,1707655846988,-784.21,0.00035616,2]
[313744643,1707655846998,-504.8064517,0.00035616,2]
[313744644,1707655847007,-500.0,0.00035616,2]
[313744645,1707655847017,-563.99236419,0.00035616,2]
[313744646,1707655847026,-500.0,0.00035616,2]
[313744647,1707655847035,-526.40527561,0.00035616,2]
[313744648,1707655847046,-506.59802935,0.00035616,2]
[313744649,1707655847056,-500.0,0.00035616,2]
[313744650,1707655847065,-500.0,0.00035616,2]
[313744651,1707655847075,-602.23,0.00035616,2]
[313744652,1707655847085,-665.31,0.00035616,2]
[313744653,1707655847095,-3464.65,0.00035616,2]
[313744654,1707655847105,-500.0,0.00035616,2]
[313744655,1707655847116,-500.0,0.00035616,2]
[313744656,1707655847126,-500.0,0.00035616,2]
[313744657,1707655847136,-500.0,0.00035616,2]
[313744658,1707655847146,-500.0,0.00035616,2]
[313744659,1707655847156,-510.95222478,0.00035616,2]
[313744660,1707655847166,-500.0,0.00035616,2]
[313744661,1707655847176,-10000.0,0.00035616,2]
[313744662,1707655847186,-500.0,0.00035616,2]
[313744663,1707655847195,-6797.18,0.00035616,2]
[313744664,1707655847205,-292.18088674,0.00035616,2]
[313744665,1707655847215,-520.65409158,0.00035616,2]
[313744666,1707655847224,-1383.58,0.00035616,2]
[313744667,1707655847234,-477.71809814,0.00035616,2]
[313744668,1707655847244,-500.0,0.00035616,2]
[313744669,1707655847254,-1565.71,0.00035616,2]
[313744670,1707655847267,-500.0,0.00035616,2]
[313744671,1707655847277,-647.87093072,0.00035616,2]
[313744672,1707655847287,-500.0,0.00035616,2]
[313744673,1707655847296,-500.0,0.00035616,2]
[313744674,1707655847306,-500.0,0.00035616,2]
[313744675,1707655847316,-500.0,0.00035616,2]
[313744676,1707655847326,-500.0,0.00035616,2]
[313744677,1707655847340,-509.97111696,0.00035616,2]
[313744678,1707655847350,-3979.74,0.00035616,2]
[313744679,1707655847360,-500.0,0.00035616,2]
[313744680,1707655847371,-665.46,0.00035616,2]
[313744681,1707655847381,-1872.64,0.00035616,2]
[313744682,1707655847392,-500.0,0.00035616,2]
[313744683,1707655847402,-500.0,0.00035616,2]
[313744684,1707655847415,-500.0,0.00035616,2]
[313744685,1707655847426,-648.18,0.00035616,2]
[313744686,1707655847436,-10000.0,0.00035616,2]
[313744687,1707655847446,-667.71,0.00035616,2]
[313744688,1707655847455,-500.0,0.00035616,2]
[313744689,1707655847466,-5727.68,0.00035616,2]
[313744690,1707655847476,-2938.74,0.00035616,2]
[313744691,1707655847486,-500.0,0.00035616,2]
[313744692,1707655847498,-500.0,0.00035616,2]
[313744693,1707655847508,-1920.35,0.00035616,2]
[313744694,1707655847519,-500.0,0.00035616,2]
[313744695,1707655847528,-500.0,0.00035616,2]
[313744696,1707655847538,-572.60676596,0.00035616,14]
[313744697,1707655847547,-500.0,0.00035616,2]
[313744698,1707655847557,-739.69,0.00035616,2]
[313744699,1707655847567,-500.0,0.00035616,2]
[313744700,1707655847576,-500.0,0.00035616,2]
[313744701,1707655847586,-1732.31,0.00035616,2]
[313744702,1707655847595,-500.0,0.00035616,2]
[313744703,1707655847605,-2203.12,0.00035616,2]
[313744704,1707655847616,-500.0,0.00035616,2]
[313744705,1707655847626,-500.0,0.00035616,2]
[313744706,1707655847637,-656.12,0.00035616,2]
[313744707,1707655847648,-1414.44,0.00035616,2]
[313744708,1707655847658,-679.31,0.00035616,2]
[313744709,1707655847668,-500.0,0.00035616,2]
[313744710,1707655847678,-665.44,0.00035616,2]
[313744711,1707655847688,-517.67795477,0.00035616,2]
[313744712,1707655847698,-500.0,0.00035616,2]
[313744713,1707655847708,-500.0,0.00035616,2]
[313744714,1707655847718,-532.07066362,0.00035616,2]
[313744715,1707655847728,-1501.1,0.00035616,2]
[313744716,1707655847738,-500.0,0.00035616,2]
[313744717,1707655847747,-500.0,0.00035616,2]
[313744718,1707655847757,-500.0,0.00035616,2]
[313744719,1707655847767,-721.83,0.00035616,2]
[313744720,1707655847777,-500.0,0.00035616,2]
[313744721,1707655847788,-1723.66,0.00035616,2]
[313744722,1707655847798,-500.0,0.00035616,2]
[313744723,1707655847811,-500.0,0.00035616,2]
[313744724,1707655847821,-500.0,0.00035616,2]
[313744725,1707655847831,-500.0,0.00035616,2]
[313744726,1707655847841,-500.0,0.00035616,2]
[313744727,1707655847851,-546.62,0.00035616,2]
[313744728,1707655847861,-1954.15,0.00035616,2]
[313744729,1707655847870,-2677.04,0.00035616,2]
[313744730,1707655847881,-601.06,0.00035616,2]
[313744731,1707655847891,-526.19169197,0.00035616,2]
[313744732,1707655847901,-500.0,0.00035616,2]
[313744733,1707655847911,-518.17,0.00035616,2]
[313744734,1707655847920,-520.85008858,0.00035616,2]
[313744735,1707655847931,-500.0,0.00035616,2]
[313744736,1707655847940,-500.0,0.00035616,2]
[313744737,1707655847950,-500.0,0.00035616,2]
[313744738,1707655847960,-500.0,0.00035616,2]
[313744739,1707655848186,-500.0,0.00035616,2]
[313744740,1707655848196,-500.0,0.00035616,2]
[313744741,1707655848205,-500.0,0.00035616,2]
[313744742,1707655848215,-500.0,0.00035616,2]
[313744743,1707655848224,-2867.3,0.00035616,2]
[313744744,1707655848234,-513.41,0.00035616,2]
[313744745,1707655848243,-509.49472537,0.00035616,2]
[313744746,1707655848253,-500.0,0.00035616,2]
[313744747,1707655848263,-500.0,0.00035616,2]
[313744748,1707655848273,-4468.21,0.00035616,2]
[313744749,1707655848282,-508.33332118,0.00035616,2]
[313744750,1707655848292,-723.25,0.00035616,2]
[313744751,1707655848302,-1144.28,0.00035616,2]
[313744752,1707655848312,-500.0,0.00035616,2]
[313744753,1707655848322,-500.0,0.00035616,2]
[313744754,1707655848335,-788.55,0.00035616,2]
[313744755,1707655848344,-500.0,0.00035616,2]
[313744756,1707655848354,-500.0,0.00035616,2]
[313744757,1707655848364,-512.78985416,0.00035616,2]
[313744758,1707655848375,-2001.83,0.00035616,2]
[313744759,1707655848384,-500.0,0.00035616,2]
[313744760,1707655848394,-500.0,0.00035616,2]
[313744761,1707655848404,-500.0,0.00035616,2]
[313744762,1707655848416,-500.0,0.00035616,2]
[313744763,1707655848426,-608.05668123,0.00035616,2]
[313744764,1707655848435,-500.0,0.00035616,2]
[313744765,1707655848445,-1021.18510905,0.00035616,7]
[313744766,1707655848454,-733.79,0.00035616,2]
[313744767,1707655848463,-500.0,0.00035616,2]
[313744768,1707655848473,-500.0,0.00035616,2]
[313744769,1707655848483,-500.0,0.00035616,2]
[313744770,1707655848492,-500.0,0.00035616,2]
[313744771,1707655848502,-293.32097202,0.00035616,2]
[313744772,1707655848512,-513.33812693,0.00035616,2]
[313744773,1707655848521,-500.0,0.00035616,2]
[313744774,1707655848531,-500.0,0.00035616,2]
[313744775,1707655848541,-1907.33,0.00035616,2]
[313744776,1707655848550,-500.0,0.00035616,2]
[313744777,1707655848561,-907.55,0.00035616,2]
[313744778,1707655848570,-644.52,0.00035616,2]
[313744779,1707655848580,-500.0,0.00035616,2]
[313744780,1707655848590,-164.99192017,0.00035616,2]
[313744781,1707655848599,-1326.34,0.00035616,2]
[313744782,1707655848609,-500.0,0.00035616,2]
[313744783,1707655848618,-500.0,0.00035616,2]
[313744784,1707655848628,-500.0,0.00035616,2]
[313744785,1707655848638,-991.59,0.00035616,2]
[313744786,1707655848647,-500.0,0.00035616,2]
[313744787,1707655848656,-514.41751121,0.00035616,2]
[313744788,1707655848666,-500.0,0.00035616,2]
[313744789,1707655848677,-526.97928261,0.00035616,2]
[313744790,1707655848686,-500.0,0.00035616,2]
[313744791,1707655848695,-516.72866412,0.00035616,2]
[313744792,1707655848705,-1052.56,0.00035616,2]
[313744793,1707655848714,-500.0,0.00035616,2]
[313744794,1707655848724,-500.0,0.00035616,2]
[313744795,1707655848734,-500.0,0.00035616,2]
[313744796,1707655848743,-500.0,0.00035616,2]
[313744797,1707655848753,-500.0,0.00035616,2]
[313744798,1707655848762,-723.54,0.00035616,2]
[313744799,1707655848772,-500.0,0.00035616,2]
[313744800,1707655848783,-641.18,0.00035616,2]
[313744801,1707655848794,-8278.92,0.00035616,2]
[313744802,1707655848803,-531.38326047,0.00035616,20]
[313744803,1707655848813,-2066.91,0.00035616,2]
[313744804,1707655848823,-522.92,0.00035616,2]
[313744805,1707655848832,-500.0,0.00035616,2]
[313744806,1707655848842,-500.0,0.00035616,2]
[313744807,1707655848852,-500.0,0.00035616,2]
[313744808,1707655848861,-506.76764237,0.00035616,2]
[313744809,1707655848871,-614.62,0.00035616,2]
[313744810,1707655848881,-551.31,0.00035616,2]
[313744811,1707655848890,-736.55,0.00035616,2]
[313744812,1707655848901,-925.72,0.00035616,2]
[313744813,1707655848910,-500.0,0.00035616,2]
[313744814,1707655848920,-500.0,0.00035616,2]
[313744815,1707655848930,-507.75883249,0.00035616,2]
[313744816,1707655848939,-500.0,0.00035616,2]
[313744817,1707655848949,-520.08399969,0.00035616,2]
[313744818,1707655848959,-1859.64,0.00035616,2]
[313744819,1707655848968,-3223.09,0.00035616,2]
[313744820,1707655848978,-540.28,0.00035616,2]
[313744821,1707655848989,-500.0,0.00035616,2]
[313744822,1707655848998,-513.83,0.00035616,2]
[313744823,1707655849007,-500.0,0.00035616,2]
[313744824,1707655849016,-515.50500494,0.00035616,2]
[313744825,1707655849026,-500.0,0.00035616,2]
[313744826,1707655849035,-663.56,0.00035616,2]
[313744827,1707655849044,-2294.82,0.00035616,2]
[313744828,1707655849054,-507.82822267,0.00035616,2]
[313744829,1707655849064,-500.0,0.00035616,2]
[313744830,1707655849073,-290.33575478,0.00035616,2]
[313744831,1707655849083,-522.78445312,0.00035616,2]
[313744832,1707655849093,-500.0,0.00035616,2]
[313744833,1707655849102,-500.0,0.00035616,2]
[313744834,1707655849112,-500.0,0.00035616,2]
[313744835,1707655849121,-500.0,0.00035616,2]
[313744836,1707655849130,-500.0,0.00035616,2]
[313744837,1707655849140,-2876.92,0.00035616,2]
[313744838,1707655849149,-1868.25,0.00035616,2]
[313744839,1707655849159,-958.72,0.00035616,2]
[313744840,1707655849170,-1000.0,0.00035616,2]
[313744841,1707655849180,-277.10162043,0.00035616,2]
[313744842,1707655849190,-592.78,0.00035616,2]
[313744843,1707655849202,-500.0,0.00035616,2]
[313744844,1707655849211,-1088.59,0.00035616,2]
[313744845,1707655849221,-500.0,0.00035616,2]
[313744846,1707655849231,-500.0,0.00035616,2]
[313744847,1707655849240,-500.0,0.00035616,2]
[313744848,1707655849249,-500.0,0.00035616,2]
[313744849,1707655849259,-667.31,0.00035616,2]
[313744850,1707655849269,-602.67,0.00035616,2]
[313744851,1707655849279,-592.04,0.00035616,2]
[313744852,1707655849288,-500.0,0.00035616,2]
[313744853,1707655849298,-500.0,0.00035616,2]
[313744854,1707655849308,-500.0,0.00035616,2]
[313744855,1707655849317,-500.0,0.00035616,2]
[313744856,1707655849328,-500.0,0.00035616,2]
[313744857,1707655849340,-500.0,0.00035616,2]
[313744858,1707655849350,-504.26866172,0.00035616,2]
[313744859,1707655849359,-3452.52,0.00035616,2]
[313744860,1707655849368,-500.0,0.00035616,2]
[313744861,1707655849379,-500.0,0.00035616,2]
[313744862,1707655849389,-511.23329948,0.00035616,2]
[313744863,1707655849400,-991.03,0.00035616,2]
[313744864,1707655849409,-2499.25,0.00035616,2]
[313744865,1707655849422,-680.48,0.00035616,2]
[313744866,1707655849433,-686.77,0.00035616,2]
[313744867,1707655849443,-1305.96,0.00035616,2]
[313744868,1707655849453,-500.0,0.00035616,2]
[313744869,1707655849464,-500.0,0.00035616,2]
[313744870,1707655849473,-508.23333988,0.00035616,2]
[313744871,1707655849482,-500.0,0.00035616,2]
[313744872,1707655849492,-527.65141728,0.00035616,2]
[313744873,1707655849502,-500.0,0.00035616,2]
[313744874,1707655849512,-500.0,0.00035616,2]
[313744875,1707655849522,-500.0,0.00035616,2]
[313744876,1707655849531,-500.0,0.00035616,2]
[313744877,1707655849541,-1469.51,0.00035616,2]
[313744878,1707655849551,-500.0,0.00035616,2]
[313744879,1707655849560,-500.3,0.00035616,2]
[313744880,1707655849572,-2404.82,0.00035616,2]
[313744881,1707655849581,-500.0,0.00035616,2]
[313744882,1707655849591,-500.0,0.00035616,2]
[313744883,1707655849600,-500.0,0.00035616,2]
[313744884,1707655849610,-829.21,0.00035616,2]
[313744885,1707655849620,-500.0,0.00035616,2]
[313744886,1707655849630,-3714.25,0.00035616,2]
[313744887,1707655849639,-2849.48,0.00035616,2]
[313744888,1707655849649,-500.0,0.00035616,2]
[313744889,1707655849658,-500.0,0.00035616,2]
[313744890,1707655849669,-539.78960676,0.00035616,2]
[313744891,1707655849680,-500.0,0.00035616,2]
[313744892,1707655849690,-509.46707337,0.00035616,2]
[313744893,1707655849699,-500.0,0.00035616,2]
[313744894,1707655849709,-500.0,0.00035616,2]
[313744895,1707655849719,-500.0,0.00035616,2]
[313744896,1707655849728,-500.0,0.00035616,2]
[313744897,1707655849737,-1101.23,0.00035616,2]
[313744898,1707655849747,-532.72,0.00035616,2]
[313744899,1707655849756,-500.0,0.00035616,2]
[313744900,1707655849766,-514.27121828,0.00035616,2]
[313744901,1707655849775,-589.36,0.00035616,2]
[313744902,1707655849785,-500.0,0.00035616,2]
[313744903,1707655849795,-834.28,0.00035616,2]
[313744904,1707655849806,-500.0,0.00035616,2]
[313744905,1707655849816,-519.04034521,0.00035616,2]
[313744906,1707655849826,-518.88868605,0.00035616,2]
[313744907,1707655849837,-1225.05,0.00035616,2]
[313744908,1707655849851,-500.0,0.00035616,2]
[313744909,1707655849861,-532.84690696,0.00035616,2]
[313744910,1707655849871,-773.76,0.00035616,2]
[313744911,1707655849881,-3291.86,0.00035616,2]
[313744912,1707655849891,-773.76,0.00035616,2]
[313744913,1707655849902,-500.0,0.00035616,2]
[313744914,1707655849913,-773.76,0.00035616,2]
[313744915,1707655849923,-773.76,0.00035616,2]
[313744916,1707655849933,-1405.4,0.00035616,2]
[313744917,1707655849942,-773.76,0.00035616,2]
[313744918,1707655849952,-773.76,0.00035616,2]
[313744919,1707655849962,-753.17,0.00035616,2]
[313744920,1707655849971,-500.0,0.00035616,2]
[313744921,1707655849983,-500.0,0.00035616,2]
[313744922,1707655849993,-773.76,0.00035616,2]
[313744923,1707655850002,-773.76,0.00035616,2]
[313744924,1707655850012,-773.76,0.00035616,2]
[313744925,1707655850021,-773.76,0.00035616,2]
[313744926,1707655850030,-773.76,0.00035616,2]
[313744927,1707655850040,-500.0,0.00035616,2]
[313744928,1707655850049,-773.76,0.00035616,2]
[313744929,1707655850059,-509.75310335,0.00035616,2]
[313744930,1707655850068,-773.76,0.00035616,2]
[313744931,1707655850078,-500.0,0.00035616,2]
[313744932,1707655850087,-773.76,0.00035616,2]
[313744933,1707655850097,-773.76,0.00035616,2]
[313744934,1707655850106,-500.0,0.00035616,2]
[313744935,1707655850116,-773.76,0.00035616,2]
[313744936,1707655850125,-773.76,0.00035616,2]
[313744937,1707655850135,-603.7,0.00035616,2]
[313744938,1707655850144,-773.76,0.00035616,2]
[313744939,1707655850154,-773.76,0.00035616,2]
[313744940,1707655850163,-773.76,0.00035616,2]
[313744941,1707655850174,-500.0,0.00035616,2]
[313744942,1707655850183,-773.76,0.00035616,2]
[313744943,1707655850193,-500.0,0.00035616,2]
[313744944,1707655850203,-773.76,0.00035616,2]
[313744945,1707655850212,-2262.98,0.00035616,2]
[313744946,1707655850222,-500.0,0.00035616,2]
[313744947,1707655850231,-565.73,0.00035616,2]
[313744948,1707655850240,-773.76,0.00035616,2]
[313744949,1707655850249,-773.96442332,0.00035616,2]
[313744950,1707655850258,-500.0,0.00035616,2]
[313744951,1707655850268,-500.0,0.00035616,2]
[313744952,1707655850277,-500.0,0.00035616,2]
[313744953,1707655850287,-5266.11,0.00035616,2]
[313744954,1707655850296,-500.0,0.00035616,2]
[313744955,1707655850306,-500.0,0.00035616,2]
[313744956,1707655850315,-500.0,0.00035616,2]
[313744957,1707655850326,-500.0,0.00035616,2]
[313744958,1707655850338,-500.0,0.00035616,2]
[313744959,1707655850347,-500.0,0.00035616,2]
[313744960,1707655850357,-192.7998909,0.00035616,2]
[313744961,1707655850371,-3328.22,0.00035616,2]
[313744962,1707655850380,-500.0,0.00035616,2]
[313744963,1707655850390,-500.0,0.00035616,2]
[313744964,1707655850399,-643.18,0.00035616,2]
[313744965,1707655850409,-656.9,0.00035616,2]
[313744966,1707655850419,-500.0,0.00035616,2]
[313744967,1707655850429,-1193.72,0.00035616,2]
[313744968,1707655850439,-504.47806811,0.00035616,2]
[313744969,1707655850448,-500.0,0.00035616,2]
[313744970,1707655850457,-500.0,0.00035616,2]
[313744971,1707655850526,-1971.73,0.00035616,2]
[313744972,1707655850535,-500.0,0.00035616,2]
[313744973,1707655850544,-538.37,0.00035616,2]
[313744974,1707655850554,-858.74,0.00035616,2]
[313744975,1707655850563,-500.0,0.00035616,2]
[313744976,1707655850573,-500.0,0.00035616,2]
[313744977,1707655850582,-500.0,0.00035616,2]
[313744978,1707655850592,-500.0,0.00035616,2]
[313744979,1707655850601,-737.17,0.00035616,2]
[313744980,1707655850610,-500.0,0.00035616,2]
[313744981,1707655850619,-503.18463491,0.00035616,2]
[313744982,1707655850629,-894.82,0.00035616,2]
[313744983,1707655850639,-348.42777326,0.00035616,2]
[313744984,1707655850648,-512.63,0.00035616,2]
[313744985,1707655850657,-824.07,0.00035616,2]
[313744986,1707655850667,-638.32,0.00035616,2]
[313744987,1707655850676,-500.0,0.00035616,2]
[313744988,1707655850685,-1724.35,0.00035616,2]
[313744989,1707655850694,-763.37,0.00035616,2]
[313744990,1707655850702,-500.0,0.00035616,2]
[313744991,1707655850711,-2594.72,0.00035616,2]
[313744992,1707655850720,-500.0,0.00035616,2]
[313744993,1707655850729,-1791.67,0.00035616,2]
[313744994,1707655850738,-500.0,0.00035616,2]
[313744995,1707655850747,-500.0,0.00035616,2]
[313744996,1707655850756,-500.0,0.00035616,2]
[313744997,1707655850765,-500.0,0.00035616,2]
[313744998,1707655850775,-500.0,0.00035616,2]
[313744999,1707655850785,-500.0,0.00035616,2]
[313745000,1707655850794,-500.0,0.00035616,2]
[313745001,1707655850804,-743.26,0.00035616,2]
[313745002,1707655850813,-620.36,0.00035616,2]
[313745003,1707655850822,-2220.74,0.00035616,2]
[313745004,1707655850831,-1761.67,0.00035616,2]
[313745005,1707655850841,-1582.98,0.00035616,2]
[313745006,1707655850850,-818.36,0.00035616,2]
[313745007,1707655850859,-517.26937953,0.00035616,2]
[313745008,1707655850869,-652.93,0.00035616,2]
[313745009,1707655850879,-702.45,0.00035616,2]
[313745010,1707655850888,-500.0,0.00035616,2]
[313745011,1707655850898,-500.0,0.00035616,2]
[313745012,1707655850908,-2117.79,0.00035616,2]
[313745013,1707655850921,-500.0,0.00035616,2]
[313745014,1707655850930,-500.0,0.00035616,2]
[313745015,1707655850940,-1088.76,0.00035616,2]
[313745016,1707655850950,-500.0,0.00035616,2]
[313745017,1707655850960,-591.62,0.00035616,2]
[313745018,1707655850969,-2424.91,0.00035616,2]
[313745019,1707655850979,-500.0,0.00035616,2]
[313745020,1707655850989,-500.0,0.00035616,2]
[313745021,1707655850998,-3252.72,0.00035616,2]
[313745022,1707655851008,-630.45,0.00035616,2]
[313745023,1707655851017,-843.16,0.00035616,2]
[313745024,1707655851027,-513.53151343,0.00035616,2]
[313745025,1707655851037,-500.0,0.00035616,2]
[313745026,1707655851046,-3054.65,0.00035616,2]
[313745027,1707655851056,-2769.56,0.00035616,2]
[313745028,1707655851065,-500.0,0.00035616,2]
[313745029,1707655851075,-507.25673012,0.00035616,2]
[313745030,1707655851084,-511.55974795,0.00035616,2]
[313745031,1707655851094,-500.0,0.00035616,2]
[313745032,1707655851103,-500.0,0.00035616,2]
[313745033,1707655851113,-500.0,0.00035616,2]
[313745034,1707655851122,-1784.55,0.00035616,2]
[313745035,1707655851132,-1352.16,0.00035616,2]
[313745036,1707655851142,-4083.37,0.00035616,2]
[313745037,1707655851151,-1145.25,0.00035616,2]
[313745038,1707655851161,-610.99,0.00035616,2]
[313745039,1707655851171,-500.0,0.00035616,2]
[313745040,1707655851184,-500.0,0.00035616,2]
[313745041,1707655851194,-500.0,0.00035616,2]
[313745042,1707655851204,-500.0,0.00035616,2]
[313745043,1707655851214,-500.0,0.00035616,2]
[313745044,1707655851224,-3291.31,0.00035616,2]
[313745045,1707655851233,-519.96980696,0.00035616,2]
[313745046,1707655851243,-500.0,0.00035616,2]
[313745047,1707655851252,-572.06,0.00035616,2]
[313745048,1707655851262,-500.0,0.00035616,2]
[313745049,1707655851272,-1305.68,0.00035616,2]
[313745050,1707655851282,-500.0,0.00035616,2]
[313745051,1707655851292,-1033.23,0.00035616,2]
[313745052,1707655851302,-500.10342646,0.00035616,2]
[313745053,1707655851312,-799.44,0.00035616,2]
[313745054,1707655851322,-500.0,0.00035616,2]
[313745055,1707655851332,-500.0,0.00035616,2]
[313745056,1707655851343,-500.0,0.00035616,2]
[313745057,1707655851353,-640.39,0.00035616,2]
[313745058,1707655851362,-3827.85,0.00035616,2]
[313745059,1707655851371,-514.41447093,0.00035616,2]
[313745060,1707655851382,-500.0,0.00035616,2]
[313745061,1707655851392,-500.0,0.00035616,2]
[313745062,1707655851401,-736.87,0.00035616,2]
[313745063,1707655851412,-500.0,0.00035616,2]
[313745064,1707655851422,-9440.41,0.00035616,2]
[313745065,1707655851433,-500.0,0.00035616,2]
[313745066,1707655851443,-504.84,0.00035616,2]
[313745067,1707655851454,-1587.67,0.00035616,2]
[313745068,1707655851467,-500.0,0.00035616,2]
[313745069,1707655851476,-507.10957637,0.00035616,2]
[313745070,1707655851486,-846.76,0.00035616,2]
[313745071,1707655851495,-500.0,0.00035616,2]
[313745072,1707655851506,-500.0,0.00035616,2]
[313745073,1707655851517,-391.82036046,0.00035616,2]
[313745074,1707655851527,-1278.31,0.00035616,2]
[313745075,1707655851537,-500.0,0.00035616,2]
[313745076,1707655851547,-2174.51,0.00035616,2]
[313745077,1707655851556,-4621.43,0.00035616,2]
[313745078,1707655851566,-2513.42,0.00035616,2]
[313745079,1707655851575,-1000.0,0.00035616,7]
[313745080,1707655851584,-1000.0,0.00035616,7]
[313745081,1707655851594,-1000.0,0.00035616,7]
[313745082,1707655851603,-1000.0,0.00035616,7]
[313745083,1707655851612,-1000.0,0.00035616,7]
[313745084,1707655851622,-1000.0,0.00035616,7]
[313745085,1707655851631,-1000.0,0.00035616,7]
[313745086,1707655851640,-1000.0,0.00035616,7]
[313745087,1707655851650,-1000.0,0.00035616,7]
[313745088,1707655851659,-1000.0,0.00035616,7]
[313745089,1707655851669,-1000.0,0.00035616,7]
[313745090,1707655851680,-1000.0,0.00035616,7]